bitfinex/quotes_BTCUSD_20220731
["timestamp","ask_amount","ask_price","bid_price","bid_amount"]
[1659290183277,0.35186191,23722.0,23721.0,0.58564428]
[1659290183735,0.35186191,23722.0,23721.0,0.53564428]
[1659290184039,0.3630362,23726.0,23721.0,0.69092728]
[1659290184259,0.3630362,23726.0,23723.0,0.736995]
[1659290184479,0.3630362,23726.0,23725.0,0.1276]
[1659290184700,0.3630362,23726.0,23725.0,0.443455]
[1659290184939,0.39770936,23726.0,23725.0,1.164596]
[1659290185378,0.39770936,23726.0,23725.0,0.743455]
[1659290185624,0.3630362,23726.0,23725.0,0.743455]
[1659290186290,0.3630362,23726.0,23725.0,1.164617]
[1659290186726,0.3630362,23726.0,23725.0,1.17726048]
[1659290187192,0.3630362,23726.0,23725.0,1.21326048]
[1659290187420,0.3630362,23726.0,23725.0,1.2037842]
[1659290188358,0.3630362,23726.0,23725.0,1.2481042]
[1659290188591,0.3630362,23726.0,23725.0,1.2037842]
[1659290188808,0.6669862,23726.0,23725.0,0.1307672]
[1659290189043,0.6669862,23726.0,23725.0,0.0261672]
[1659290189505,0.6669862,23726.0,23725.0,0.038528]
[1659290189953,0.6669862,23726.0,23725.0,0.05720498]
[1659290190412,1.1602862,23726.0,23725.0,0.03420498]
[1659290191296,1.1102862,23726.0,23725.0,0.03420498]
[1659290191735,0.6669862,23726.0,23725.0,0.03427367]
[1659290192183,0.30395,23726.0,23725.0,0.07852498]
[1659290192404,0.30395,23726.0,23725.0,0.38842498]
[1659290192617,0.30395,23726.0,23725.0,0.68842498]
[1659290192835,0.30395,23726.0,23725.0,0.79372198]
[1659290193692,0.30404419,23730.0,23725.0,0.79372198]
[1659290193904,0.71120733,23729.0,23726.0,0.743473]
[1659290194127,0.74588049,23728.0,23726.0,0.743473]
[1659290194376,0.71120733,23727.0,23726.0,0.743473]
[1659290195058,0.74588049,23727.0,23726.0,0.743473]
[1659290195264,0.74588049,23727.0,23726.0,0.3]
[1659290195521,0.74588049,23727.0,23726.0,0.405296]
[1659290195762,0.74588049,23727.0,23726.0,0.3]
[1659290195986,0.74588049,23727.0,23726.0,0.405295]
[1659290196418,0.71120733,23727.0,23726.0,0.405295]
[1659290196653,0.71120733,23727.0,23726.0,0.3]
[1659290196842,0.71120733,23727.0,23726.0,0.405297]
[1659290197046,0.71120733,23727.0,23726.0,0.3]
[1659290199970,0.74588049,23727.0,23726.0,0.3]
[1659290202238,1.04588049,23727.0,23726.0,0.3]
[1659290202694,1.09588049,23727.0,23725.0,0.34410498]
[1659290202892,1.06120733,23726.0,23725.0,0.34410498]
[1659290204434,1.06120733,23726.0,23725.0,0.64410498]
[1659290205514,0.71120733,23726.0,23725.0,0.64410498]
[1659290207778,0.71120733,23726.0,23725.0,0.74940798]
[1659290208014,0.71111282,23726.0,23725.0,0.74940798]
[1659290208442,0.71111282,23726.0,23725.0,0.76183116]
[1659290208912,0.71111282,23726.0,23725.0,0.97242916]
[1659290209331,0.71111282,23726.0,23725.0,0.76183116]
[1659290209544,0.71111282,23726.0,23725.0,0.65652816]
[1659290210100,0.71111282,23726.0,23725.0,0.76183216]
[1659290210506,0.71111282,23726.0,23725.0,0.65652816]
[1659290210723,0.71111282,23726.0,23725.0,0.97242916]
[1659290210940,0.71111282,23726.0,23725.0,0.65652816]
[1659290211732,0.74578598,23726.0,23725.0,0.65652816]
[1659290211950,0.71111282,23726.0,23725.0,0.93575116]
[1659290212366,0.71111282,23726.0,23725.0,1.14635116]
[1659290212601,0.71111282,23726.0,23725.0,1.10203116]
[1659290212806,0.71111282,23726.0,23725.0,0.65652816]
[1659290213764,0.74578598,23726.0,23725.0,0.65652816]
[1659290214402,0.71111282,23726.0,23725.0,0.65652816]
[1659290214607,0.71111282,23726.0,23725.0,0.70084816]
[1659290215033,0.71111282,23726.0,23725.0,1.01674616]
[1659290216442,0.71111282,23726.0,23725.0,1.02541443]
[1659290216674,0.71111282,23726.0,23725.0,1.01674616]
[1659290216897,0.71111282,23726.0,23725.0,1.02938964]
[1659290217403,0.40725733,23726.0,23725.0,2.0241754]
[1659290217635,0.40725733,23726.0,23725.0,1.02938964]
[1659290217874,0.40725733,23726.0,23725.0,1.01674616]
[1659290218106,0.44134319,23726.0,23725.0,0.97073883]
[1659290218577,0.44134319,23726.0,23725.0,0.86543783]
[1659290219064,0.44134319,23726.0,23725.0,0.65484083]
[1659290219288,0.44134319,23726.0,23725.0,0.66748431]
[1659290219508,0.44134319,23726.0,23725.0,0.65484083]
[1659290219752,0.40914534,23726.0,23725.0,0.65663847]
[1659290219975,0.71309234,23726.0,23725.0,0.65663847]
[1659290220197,0.40914534,23726.0,23725.0,0.65663847]
[1659290220411,0.71309234,23726.0,23725.0,0.76193747]
[1659290220627,0.71309234,23726.0,23725.0,0.97253247]
[1659290220846,0.40914534,23726.0,23725.0,0.97253247]
[1659290221091,0.71309234,23726.0,23725.0,0.97253247]
[1659290223017,0.40914534,23726.0,23725.0,0.97253247]
[1659290223021,0.40914534,23726.0,23725.0,0.35663847]
[1659290223022,0.70914534,23726.0,23725.0,0.35663847]
[1659290223253,1.45639234,23726.0,23725.0,0.34421529]
[1659290225752,1.45639234,23726.0,23725.0,0.64421529]
[1659290226614,1.45639234,23726.0,23725.0,0.34421529]
[1659290228067,1.15639234,23726.0,23725.0,0.34421529]
[1659290228271,1.45639234,23726.0,23725.0,0.64421529]
[1659290228541,1.45639234,23726.0,23725.0,0.34421529]
[1659290231436,1.45639234,23726.0,23725.0,0.64421529]
[1659290236942,1.45639234,23726.0,23725.0,0.65654611]
[1659290238468,1.45639234,23726.0,23725.0,0.34421529]
[1659290239843,1.45639234,23726.0,23725.0,0.64421529]
[1659290241291,1.15639234,23726.0,23725.0,0.64421529]
[1659290241779,1.45639234,23726.0,23725.0,0.64421529]
[1659290242198,1.01309234,23726.0,23725.0,0.64421529]
[1659290242653,0.71309234,23726.0,23725.0,0.64421529]
[1659290243909,1.01309234,23726.0,23725.0,0.64421529]
[1659290244575,1.01297782,23726.0,23725.0,0.64421529]
[1659290245214,0.71297782,23726.0,23725.0,0.64421529]
[1659290245697,1.01297782,23726.0,23725.0,0.64421529]
[1659290246143,1.01297782,23726.0,23725.0,0.65699278]
[1659290247530,0.71297782,23726.0,23725.0,0.65699278]
[1659290248595,1.01297782,23726.0,23725.0,0.65699278]
[1659290251014,1.04765098,23726.0,23725.0,0.65699278]
[1659290251838,1.01297782,23726.0,23725.0,0.65699278]
[1659290252536,1.01297782,23726.0,23725.0,0.65692793]
[1659290254836,0.71297782,23726.0,23725.0,0.65692793]
[1659290258257,1.01297782,23726.0,23725.0,0.65692793]
[1659290258701,0.71297782,23726.0,23725.0,0.65692793]
[1659290259237,0.71297782,23726.0,23725.0,0.76222893]
[1659290259459,0.71297782,23726.0,23725.0,0.65692793]
[1659290260680,0.71297782,23726.0,23725.0,0.70124793]
[1659290260944,0.71297782,23726.0,23725.0,0.93413993]
[1659290261159,0.71297782,23726.0,23725.0,1.14472493]
[1659290263025,0.71297782,23726.0,23725.0,1.14549516]
[1659290263952,0.71297782,23726.0,23725.0,1.14472493]
[1659290264661,0.71297782,23726.0,23725.0,1.10043093]
[1659290265090,0.71297782,23726.0,23725.0,0.78452793]
[1659290265298,0.71297782,23726.0,23725.0,0.82884793]
[1659290265557,0.71297782,23726.0,23725.0,1.14474193]
[1659290265760,0.40903082,23726.0,23725.0,1.14474193]
[1659290265986,0.71297782,23726.0,23725.0,1.10042193]
[1659290266422,0.71297782,23726.0,23725.0,0.78452793]
[1659290266529,0.71297782,23726.0,23725.0,0.78727599]
[1659290266728,0.71297782,23726.0,23725.0,1.10317799]
[1659290268829,0.71309234,23726.0,23725.0,1.14749799]
[1659290269257,0.00188801,23726.0,23725.0,1.14749799]
[1659290270520,0.00188801,23726.0,23725.0,1.56864599]
[1659290271202,0.00188801,23726.0,23725.0,1.64764599]
[1659290271448,0.06333277,23731.0,23730.0,0.06853668]
[1659290271698,0.4705901,23731.0,23730.0,0.1276]
[1659290272369,0.4705901,23731.0,23730.0,0.13511849]
[1659290272594,0.4705901,23731.0,23730.0,0.20751849]
[1659290273543,0.4705901,23731.0,23730.0,0.31279049]
[1659290273773,0.4705901,23731.0,23730.0,0.61279049]
[1659290274035,0.4705901,23731.0,23730.0,0.82956714]
[1659290274470,0.4705901,23731.0,23730.0,0.87388714]
[1659290275540,0.4705901,23731.0,23730.0,0.82956714]
[1659290276674,0.4705901,23731.0,23730.0,0.37862965]
[1659290276897,0.4705901,23731.0,23730.0,0.07862965]
[1659290277119,0.7745371,23731.0,23730.0,0.07862965]
[1659290277334,0.4705901,23731.0,23730.0,0.07862965]
[1659290277565,0.80921026,23731.0,23730.0,0.07862965]
[1659290278756,0.50526326,23731.0,23730.0,0.07862965]
[1659290278974,0.4705901,23731.0,23730.0,0.07862965]
[1659290279195,0.7745371,23731.0,23730.0,0.31150865]
[1659290279404,0.4705901,23731.0,23730.0,0.61150865]
[1659290279631,0.4705901,23731.0,23730.0,0.81932735]
[1659290279914,0.4705901,23731.0,23730.0,0.86364735]
[1659290280570,0.7745371,23731.0,23730.0,0.86364735]
[1659290280801,0.80921026,23731.0,23730.0,0.50350035]
[1659290281023,0.80921026,23731.0,23730.0,0.37590035]
[1659290281245,0.7745371,23731.0,23730.0,0.18117135]
[1659290281480,0.7745371,23731.0,23730.0,0.48117135]
[1659290282159,0.7745371,23731.0,23730.0,0.81931735]
[1659290282830,0.7745371,23731.0,23730.0,0.60877135]
[1659290283044,0.7745371,23731.0,23730.0,0.81931935]
[1659290283267,0.80921026,23731.0,23730.0,0.81931935]
[1659290283489,0.7745371,23731.0,23730.0,0.81931935]
[1659290283790,0.7745371,23731.0,23730.0,0.54782035]
[1659290284032,0.7745371,23731.0,23730.0,0.56363135]
[1659290284474,0.7745371,23731.0,23730.0,0.86363135]
[1659290284828,0.002,23732.0,23730.0,0.81931135]
[1659290285027,0.002,23732.0,23731.0,0.3]
[1659290285229,0.305944,23732.0,23731.0,0.3]
[1659290285899,0.002,23732.0,23731.0,0.3]
[1659290287340,0.305944,23732.0,23731.0,0.3]
[1659290287559,0.002,23732.0,23731.0,0.3]
[1659290287977,0.002,23732.0,23731.0,0.35]
[1659290288194,0.001,23737.0,23733.0,0.06853668]
[1659290288195,0.655,23737.0,23733.0,0.06853668]
[1659290288413,0.655,23737.0,23735.0,0.06853668]
[1659290288414,0.303944,23736.0,23735.0,0.06853668]
[1659290288626,0.655,23737.0,23736.0,0.1276]
[1659290289080,0.958944,23737.0,23736.0,0.1276]
[1659290289520,1.66620133,23737.0,23735.0,0.0721]
[1659290289769,0.94144133,23736.0,23735.0,0.0721]
[1659290290440,0.94050697,23736.0,23735.0,0.0721]
[1659290291284,0.94050697,23736.0,23735.0,0.07596698]
[1659290292176,0.94050697,23736.0,23735.0,0.22554098]
[1659290292177,0.64050697,23736.0,23735.0,0.22554098]
[1659290292387,0.64050697,23736.0,23735.0,0.73604198]
[1659290292861,0.234184,23736.0,23735.0,0.73604198]
[1659290295801,0.655,23737.0,23735.0,0.73604198]
[1659290296037,0.603944,23736.0,23735.0,0.37596698]
[1659290296269,0.71113473,23736.0,23735.0,0.37596698]
[1659290296484,0.27190264,23736.0,23735.0,0.48121798]
[1659290296940,0.27190264,23736.0,23735.0,0.37596698]
[1659290297405,0.27190264,23736.0,23735.0,0.07596698]
[1659290297667,0.67915997,23736.0,23735.0,0.07596698]
[1659290298109,0.67915997,23736.0,23735.0,0.37596698]
[1659290299134,0.67915997,23736.0,23735.0,0.48122198]
[1659290299453,0.67915997,23736.0,23735.0,0.37596698]
[1659290299676,0.67915997,23736.0,23735.0,0.07596698]
[1659290299901,0.67915997,23736.0,23735.0,0.37596698]
[1659290301076,0.67915997,23736.0,23735.0,0.07596698]
[1659290302448,0.67915997,23736.0,23735.0,0.37596698]
[1659290302696,0.67915997,23736.0,23735.0,0.69172798]
[1659290302924,0.57190264,23736.0,23735.0,0.37596698]
[1659290303150,0.67915997,23736.0,23735.0,0.37596698]
[1659290303625,0.67915997,23736.0,23735.0,0.07596698]
[1659290305493,0.97915997,23736.0,23735.0,0.07596698]
[1659290305811,1.02915997,23736.0,23735.0,0.07596698]
[1659290306290,1.06383313,23736.0,23735.0,0.07596698]
[1659290306525,0.71383313,23736.0,23735.0,0.07736044]
[1659290306748,0.67915997,23736.0,23735.0,0.07596698]
[1659290307191,0.27190264,23736.0,23735.0,0.07596698]
[1659290308589,0.27190264,23736.0,23735.0,0.18121398]
[1659290308809,0.27190264,23736.0,23735.0,0.48121398]
[1659290309529,0.27190264,23736.0,23735.0,0.69170798]
[1659290310442,0.655,23737.0,23735.0,0.69170798]
[1659290310670,0.303909,23736.0,23735.0,0.69171298]
[1659290310889,0.303909,23736.0,23735.0,0.58646098]
[1659290311108,0.33858216,23736.0,23735.0,0.69171098]
[1659290311309,0.303909,23736.0,23735.0,0.69171098]
[1659290311539,0.303909,23736.0,23735.0,0.48121698]
[1659290312050,0.303909,23736.0,23735.0,0.69171998]
[1659290312489,0.303909,23736.0,23735.0,0.37596698]
[1659290312728,0.303909,23736.0,23735.0,0.39171998]
[1659290312945,0.303909,23736.0,23735.0,0.48121698]
[1659290313168,0.303909,23736.0,23735.0,0.37596698]
[1659290313693,0.603909,23736.0,23735.0,0.07596698]
[1659290313926,1.01116633,23736.0,23735.0,0.07596698]
[1659290314156,1.06116633,23736.0,23735.0,0.07596698]
[1659290314655,1.11116633,23736.0,23735.0,0.07596698]
[1659290314885,1.06116633,23736.0,23735.0,0.07596698]
[1659290315558,1.16116633,23736.0,23735.0,0.07596698]
[1659290315844,1.60446633,23736.0,23735.0,0.07596698]
[1659290316064,1.60446633,23736.0,23731.0,0.03225199]
[1659290316065,0.15,23732.0,23731.0,0.03225199]
[1659290316299,2.05274033,23732.0,23725.0,0.34093778]
[1659290316548,1.3433,23732.0,23725.0,0.34093778]
[1659290316771,1.35594348,23732.0,23725.0,0.39093778]
[1659290317004,1.4233,23732.0,23727.0,0.05]
[1659290317289,1.528627,23732.0,23725.0,0.39093778]
[1659290317496,1.739275,23732.0,23727.0,0.05]
[1659290317719,1.344602,23732.0,23725.0,0.39093778]
[1659290317939,1.133948,23732.0,23727.0,0.05]
[1659290318174,1.133948,23732.0,23725.0,0.39093778]
[1659290318393,1.053948,23732.0,23725.0,0.39093778]
[1659290318640,1.475231,23732.0,23725.0,0.39093778]
[1659290319093,1.555231,23732.0,23725.0,0.39093778]
[1659290319331,1.555231,23732.0,23726.0,0.3]
[1659290319570,1.555231,23732.0,23725.0,0.39093778]
[1659290319814,1.555231,23732.0,23727.0,0.00330373]
[1659290320487,1.475231,23732.0,23727.0,0.00330373]
[1659290321237,1.555231,23732.0,23727.0,0.00330373]
[1659290322579,1.475231,23732.0,23727.0,0.00330373]
[1659290323041,1.555231,23732.0,23727.0,0.00330373]
[1659290323742,1.133948,23732.0,23727.0,0.00330373]
[1659290324424,1.053948,23732.0,23727.0,0.00330373]
[1659290325050,1.239264,23732.0,23727.0,0.00330373]
[1659290326348,1.859264,23732.0,23727.0,0.00330373]
[1659290326702,2.280549,23732.0,23727.0,0.00330373]
[1659290326952,2.810149,23732.0,23727.0,0.00330373]
[1659290327164,3.00699248,23732.0,23727.0,0.00330373]
[1659290328486,2.94599248,23732.0,23727.0,0.00330373]
[1659290328804,2.54599248,23732.0,23727.0,0.00330373]
[1659290329139,2.62499248,23732.0,23727.0,0.00330373]
[1659290330532,2.41688047,23732.0,23727.0,0.00330373]
[1659290330753,2.92979383,23732.0,23727.0,0.00330373]
[1659290331260,3.00879383,23732.0,23727.0,0.00330373]
[1659290331687,3.11410983,23732.0,23727.0,0.00330373]
[1659290332342,3.03510983,23732.0,23727.0,0.00330373]
[1659290333021,3.10146635,23732.0,23727.0,0.00330373]
[1659290334131,3.50146635,23732.0,23727.0,0.00330373]
[1659290334348,3.42246635,23732.0,23727.0,0.00330373]
[1659290334574,3.16772193,23732.0,23727.0,0.00330373]
[1659290335046,3.24672193,23732.0,23727.0,0.00330373]
[1659290335470,3.59672193,23732.0,23727.0,0.00330373]
[1659290335904,3.59679065,23732.0,23727.0,0.00330373]
[1659290336071,3.44679065,23732.0,23727.0,0.00330373]
[1659290336397,2.76247465,23732.0,23727.0,0.00330373]
[1659290336607,2.44956129,23732.0,23727.0,0.00330373]
[1659290336813,2.44949257,23732.0,23727.0,0.00330373]
[1659290336989,2.52849257,23732.0,23727.0,0.00330373]
[1659290337342,2.52856129,23732.0,23727.0,0.00330373]
[1659290337760,2.63389929,23732.0,23727.0,0.00330373]
[1659290337977,2.63383057,23732.0,23727.0,0.00330373]
[1659290338411,2.55483057,23732.0,23727.0,0.00330373]
[1659290339091,2.63483057,23732.0,23727.0,0.00330373]
[1659290340419,2.76553737,23732.0,23727.0,0.00330373]
[1659290340656,3.17818085,23732.0,23728.0,0.00273253]
[1659290341056,3.25718085,23732.0,23728.0,0.00273253]
[1659290341942,1.76721375,23732.0,23728.0,0.00273253]
[1659290342160,1.65656575,23732.0,23728.0,0.00273253]
[1659290342380,1.57756575,23732.0,23728.0,0.00273253]
[1659290342595,1.68290375,23732.0,23728.0,0.00273253]
[1659290343137,1.76190375,23732.0,23728.0,0.00273253]
[1659290343809,1.25656575,23732.0,23728.0,0.00273253]
[1659290344024,1.01784457,23732.0,23728.0,0.00273253]
[1659290344488,0.93884457,23732.0,23728.0,0.00273253]
[1659290344707,0.93884457,23732.0,23727.0,0.00330373]
[1659290344708,0.93884457,23732.0,23727.0,0.00603626]
[1659290344930,1.29890963,23732.0,23727.0,0.00603626]
[1659290345142,1.37790963,23732.0,23727.0,0.00603626]
[1659290345367,1.47790963,23732.0,23727.0,0.00603626]
[1659290346002,1.67790963,23732.0,23727.0,0.00603626]
[1659290346453,1.59890963,23732.0,23727.0,0.00603626]
[1659290347191,1.67790963,23732.0,23727.0,0.00603626]
[1659290347639,1.57255463,23732.0,23727.0,0.00603626]
[1659290348306,1.49355463,23732.0,23727.0,0.00603626]
[1659290349135,1.57255463,23732.0,23727.0,0.00603626]
[1659290349532,1.31784457,23732.0,23727.0,0.00603626]
[1659290349919,1.31784457,23732.0,23728.0,0.49993989]
[1659290350124,1.42319057,23732.0,23727.0,0.00603626]
[1659290350328,1.34419057,23732.0,23727.0,0.00603626]
[1659290350561,1.34419057,23732.0,23728.0,0.49993989]
[1659290351215,1.42319057,23732.0,23728.0,0.49993989]
[1659290352349,1.34419057,23732.0,23728.0,0.49993989]
[1659290353016,1.31784457,23732.0,23730.0,0.49993989]
[1659290354091,1.31784457,23732.0,23727.0,0.00603626]
[1659290354092,1.42318757,23732.0,23727.0,0.00603626]
[1659290354444,1.23884457,23732.0,23728.0,0.49993989]
[1659290355095,1.31784457,23732.0,23728.0,0.49993989]
[1659290355305,1.06504457,23732.0,23728.0,0.49993989]
[1659290355516,1.31784457,23732.0,23728.0,0.49993989]
[1659290355734,1.00189957,23732.0,23730.0,0.00817373]
[1659290355962,0.74909957,23732.0,23730.0,0.00817373]
[1659290356398,0.67009957,23732.0,23730.0,0.00817373]
[1659290356627,0.92289957,23732.0,23730.0,0.00602053]
[1659290356846,0.92290357,23732.0,23730.0,0.00602053]
[1659290357100,1.00190357,23732.0,23730.0,0.00602053]
[1659290357980,0.89655957,23732.0,23730.0,0.00602053]
[1659290358219,0.89655957,23732.0,23730.0,0.50596042]
[1659290358524,0.74909357,23732.0,23730.0,0.50615075]
[1659290358739,0.44375957,23732.0,23730.0,0.50615075]
[1659290358954,0.26475957,23732.0,23730.0,0.54082391]
[1659290359168,0.34375957,23732.0,23730.0,0.54082391]
[1659290359614,0.34375957,23732.0,23730.0,0.50615075]
[1659290360516,0.26475957,23732.0,23730.0,0.50615075]
[1659290360970,0.26475957,23732.0,23730.0,0.50689104]
[1659290361196,0.34375957,23732.0,23730.0,0.50689104]
[1659290361442,0.34375957,23732.0,23730.0,0.5415642]
[1659290362087,0.39375957,23732.0,23730.0,0.5415642]
[1659290362311,0.39375957,23732.0,23730.0,0.6468722]
[1659290362541,0.31475957,23732.0,23730.0,0.6468722]
[1659290363006,0.31475957,23732.0,23730.0,0.5415642]
[1659290363217,0.39375957,23732.0,23730.0,0.5415642]
[1659290364099,0.34375957,23732.0,23730.0,0.5415642]
[1659290364327,0.26475957,23732.0,23730.0,0.77320498]
[1659290364550,0.4433,23734.0,23731.0,0.68777942]
[1659290364759,0.4433,23734.0,23733.0,0.49993989]
[1659290364977,0.4433,23734.0,23733.0,0.85651947]
[1659290365634,0.4433,23734.0,23733.0,0.49993989]
[1659290366414,0.4933,23734.0,23733.0,0.49993989]
[1659290367018,0.5733,23734.0,23733.0,0.49993989]
[1659290367555,0.678615,23734.0,23733.0,0.49993989]
[1659290368114,0.5733,23734.0,23733.0,0.49993989]
[1659290368343,0.4933,23734.0,23733.0,0.49993989]
[1659290369208,0.5723,23734.0,23733.0,0.49993989]
[1659290369686,0.5723,23734.0,23733.0,0.53620909]
[1659290370240,0.4933,23734.0,23733.0,0.53620909]
[1659290371065,0.5733,23734.0,23733.0,0.53620909]
[1659290372336,0.4933,23734.0,23733.0,0.53620909]
[1659290372979,0.5233,23734.0,23733.0,0.53620909]
[1659290373197,0.5733,23734.0,23733.0,0.49993989]
[1659290373819,0.5233,23734.0,23733.0,0.49993989]
[1659290374468,0.4933,23734.0,23733.0,0.49993989]
[1659290375112,0.5733,23734.0,23733.0,0.49993989]
[1659290376044,0.5733,23734.0,23733.0,0.53469286]
[1659290376320,0.5233,23734.0,23733.0,0.53469286]
[1659290376561,0.4433,23734.0,23733.0,0.53469286]
[1659290376777,0.4433,23734.0,23733.0,0.49993989]
[1659290376997,0.5233,23734.0,23733.0,0.49993989]
[1659290377267,0.5233,23734.0,23733.0,0.53620909]
[1659290377485,0.5233,23734.0,23733.0,0.50153593]
[1659290377708,0.5233,23734.0,23733.0,0.49993989]
[1659290378163,0.5233,23734.0,23733.0,0.53620909]
[1659290378376,0.4433,23734.0,23733.0,0.49993989]
[1659290379050,0.5233,23734.0,23733.0,0.49993989]
[1659290380442,0.4433,23734.0,23733.0,0.49993989]
[1659290381198,0.5233,23734.0,23733.0,0.49993989]
[1659290382521,0.654,23735.0,23734.0,0.09443319]
[1659290382792,0.654,23735.0,23734.0,0.71633961]
[1659290383486,0.654,23735.0,23734.0,1.12359694]
[1659290383944,0.654,23735.0,23734.0,1.42757794]
[1659290384178,0.654,23735.0,23734.0,1.01220652]
[1659290384871,0.654,23735.0,23734.0,1.11747452]
[1659290385098,0.734,23735.0,23734.0,0.80169052]
[1659290385369,0.734,23735.0,23734.0,0.90695852]
[1659290385589,0.734,23735.0,23734.0,1.11747452]
[1659290386511,0.734,23735.0,23734.0,1.16087452]
[1659290386727,0.654,23735.0,23734.0,1.16087452]
[1659290387219,0.734,23735.0,23734.0,1.16087452]
[1659290387443,0.73390527,23735.0,23734.0,1.16087452]
[1659290388299,1.29514394,23735.0,23734.0,1.16087452]
[1659290390275,0.64123867,23735.0,23734.0,1.16087452]
[1659290390960,0.56123867,23735.0,23734.0,1.16087452]
[1659290391198,0.64123867,23735.0,23734.0,1.16087452]
[1659290392341,0.56123867,23735.0,23734.0,1.16087452]
[1659290392565,0.56123867,23735.0,23734.0,1.48278094]
[1659290393055,0.56123867,23735.0,23734.0,1.16087452]
[1659290393293,0.64023867,23735.0,23734.0,1.11655452]
[1659290393514,0.64023867,23735.0,23734.0,0.80077052]
[1659290393739,0.64023867,23735.0,23734.0,0.90603852]
[1659290394438,0.56123867,23735.0,23734.0,0.86264552]
[1659290394673,0.56123867,23735.0,23734.0,0.40737052]
[1659290394904,0.56123867,23735.0,23734.0,0.00011319]
[1659290395130,0.64023867,23735.0,23734.0,0.00011319]
[1659290396546,0.56123867,23735.0,23734.0,0.00011319]
[1659290396807,0.56123867,23735.0,23734.0,0.03998594]
[1659290397003,0.64023867,23735.0,23734.0,0.00011319]
[1659290397254,1.08353867,23735.0,23734.0,0.00011319]
[1659290398175,1.13353867,23735.0,23734.0,0.00011319]
[1659290398394,1.05453867,23735.0,23734.0,0.00011319]
[1659290398639,1.00453867,23735.0,23734.0,0.00011319]
[1659290399093,1.08353867,23735.0,23734.0,0.30011319]
[1659290399309,1.08353867,23735.0,23734.0,0.00011319]
[1659290400485,1.00453867,23735.0,23734.0,0.00011319]
[1659290400760,1.00453867,23735.0,23734.0,0.04443319]
[1659290400971,0.56123867,23735.0,23734.0,0.80169052]
[1659290401212,0.64023867,23735.0,23734.0,1.10567152]
[1659290401434,0.64023867,23735.0,23734.0,0.80169052]
[1659290401661,0.64023867,23735.0,23734.0,0.84156327]
[1659290402100,0.64023867,23735.0,23734.0,0.39443319]
[1659290402365,0.56123867,23735.0,23734.0,0.39443319]
[1659290402621,0.56123867,23735.0,23734.0,0.48530594]
[1659290403068,0.64023867,23735.0,23734.0,0.44098594]
[1659290403526,0.64023867,23735.0,23734.0,0.54625194]
[1659290403762,0.64023867,23735.0,23734.0,1.37456327]
[1659290404480,0.56123867,23735.0,23734.0,1.37456327]
[1659290404684,0.56123867,23735.0,23734.0,1.58508927]
[1659290404948,0.56123867,23735.0,23734.0,0.95350927]
[1659290405181,0.64023867,23735.0,23734.0,0.95350927]
[1659290405621,0.64023867,23735.0,23734.0,1.58508927]
[1659290406546,0.56123867,23735.0,23734.0,1.58508927]
[1659290407203,0.64023867,23735.0,23734.0,1.58508927]
[1659290408935,0.56123867,23735.0,23734.0,1.58508927]
[1659290409053,0.64023867,23735.0,23734.0,2.58508927]
[1659290409256,0.65015051,23735.0,23734.0,3.58508927]
[1659290409495,0.65015051,23735.0,23734.0,4.58508927]
[1659290409731,0.65015051,23735.0,23734.0,5.58508927]
[1659290409947,0.65008288,23735.0,23734.0,5.58508927]
[1659290410365,0.57108288,23735.0,23734.0,5.58508927]
[1659290411673,0.65008288,23735.0,23734.0,5.88907027]
[1659290411910,0.65008288,23735.0,23734.0,5.58508927]
[1659290412332,0.65008288,23735.0,23734.0,5.88907027]
[1659290412874,0.65008288,23735.0,23734.0,5.93907027]
[1659290414377,0.57108288,23735.0,23734.0,5.93907027]
[1659290415038,0.65008288,23735.0,23734.0,5.93907027]
[1659290416442,0.57108288,23735.0,23734.0,5.93907027]
[1659290416691,0.57108288,23735.0,23734.0,5.63508927]
[1659290417359,0.57108288,23735.0,23734.0,5.58508927]
[1659290417777,0.65008288,23735.0,23734.0,5.58508927]
[1659290418885,0.65008288,23735.0,23734.0,5.88907027]
[1659290419109,0.65008288,23735.0,23734.0,5.58508927]
[1659290420104,0.65008288,23735.0,23734.0,5.53408927]
[1659290420311,0.65008288,23735.0,23734.0,5.83807027]
[1659290420539,0.57108288,23735.0,23734.0,5.53408927]
[1659290421177,0.65008288,23735.0,23734.0,5.53408927]
[1659290421646,0.65008288,23735.0,23734.0,5.83807027]
[1659290422550,0.57108288,23735.0,23734.0,6.33801016]
[1659290423228,0.65008288,23735.0,23734.0,6.33801016]
[1659290424411,0.57108288,23735.0,23734.0,6.03402916]
[1659290425077,0.65008288,23735.0,23734.0,6.03402916]
[1659290426425,0.57108288,23735.0,23734.0,6.03402916]
[1659290427094,0.65008288,23735.0,23734.0,6.03402916]
[1659290427766,0.65008288,23735.0,23734.0,5.99415641]
[1659290427768,0.65008288,23735.0,23734.0,5.69415641]
[1659290427982,0.65008288,23735.0,23734.0,5.64415641]
[1659290428419,0.57108288,23735.0,23734.0,5.64415641]
[1659290429080,0.65008288,23735.0,23734.0,5.94415641]
[1659290430384,0.57108288,23735.0,23734.0,5.94415641]
[1659290431236,0.65008288,23735.0,23734.0,5.94415641]
[1659290431482,0.65008288,23735.0,23734.0,6.24813741]
[1659290431701,0.65008288,23735.0,23734.0,5.94415641]
[1659290432387,0.57108288,23735.0,23734.0,5.94417341]
[1659290432613,0.57108288,23735.0,23734.0,5.52310241]
[1659290433093,0.65008288,23735.0,23734.0,5.94416341]
[1659290433567,0.65008288,23735.0,23734.0,6.24814441]
[1659290433797,0.65008288,23735.0,23734.0,5.94416341]
[1659290434271,0.65008288,23735.0,23734.0,5.52310241]
[1659290434485,0.57100329,23735.0,23734.0,5.52310241]
[1659290434709,0.57100329,23735.0,23734.0,5.31258241]
[1659290435125,0.65000329,23735.0,23734.0,5.31452398]
[1659290435395,0.65150735,23735.0,23734.0,5.31452398]
[1659290435603,0.65150735,23735.0,23734.0,5.52506298]
[1659290435965,0.65150735,23735.0,23734.0,5.94612598]
[1659290436177,0.65150735,23735.0,23734.0,5.94611598]
[1659290436404,0.57250735,23735.0,23734.0,5.94611598]
[1659290437135,0.65150735,23735.0,23734.0,5.94611598]
[1659290438355,0.57250735,23735.0,23734.0,5.94603303]
[1659290439033,0.65150735,23735.0,23734.0,5.94603303]
[1659290440006,0.65150735,23735.0,23734.0,6.04574303]
[1659290440466,0.57250735,23735.0,23734.0,6.04574303]
[1659290441127,0.65150735,23735.0,23734.0,6.04574303]
[1659290442343,0.57250735,23735.0,23734.0,6.04574303]
[1659290442771,0.57250735,23735.0,23734.0,5.99603303]
[1659290443063,0.65150735,23735.0,23734.0,5.99603303]
[1659290443630,0.65150735,23735.0,23734.0,5.57498003]
[1659290443854,0.65150735,23735.0,23734.0,5.52498003]
[1659290444079,0.65150735,23735.0,23734.0,5.31444103]
[1659290444297,0.57250735,23735.0,23734.0,5.20917203]
[1659290444517,0.57250735,23735.0,23734.0,5.52499503]
[1659290444939,0.65150735,23735.0,23734.0,5.94607703]
[1659290445151,0.65150735,23735.0,23734.0,5.52499503]